fUST/lending_fUST_20241115
["ID","MTS","AMOUNT","RATE_DAILY","PERIOD"]
[342248302,1731653433136,-1320.367654,0.00013698,2]
[342248303,1731653433146,-1320.367654,0.00013698,2]
[342248304,1731653433156,-151.0,0.00013698,2]
[342248305,1731653433166,-151.0,0.00013698,2]
[342248306,1731653433177,-151.0,0.00013698,2]
[342248307,1731653433187,-151.0,0.00013698,2]
[342248308,1731653433198,-151.0,0.00013698,2]
[342248309,1731653433207,-151.0,0.00013698,2]
[342248310,1731653433218,-279.34180238,0.00013698,2]
[342248311,1731653433227,-500.0,0.00013698,2]
[342248312,1731653433237,-743.88,0.00013698,2]
[342248313,1731653433247,-629.43,0.00013698,2]
[342248314,1731653433260,-500.0,0.00013698,2]
[342248315,1731653433270,-500.0,0.00013698,2]
[342248316,1731653433279,-548.54442719,0.00013698,2]
[342248317,1731653433289,-500.0,0.00013698,2]
[342248318,1731653433298,-501.66792124,0.00013698,2]
[342248319,1731653433308,-500.0,0.00013698,2]
[342248320,1731653433318,-441.023466,0.00013698,2]
[342248321,1731653433328,-510.08401317,0.00013698,2]
[342248322,1731653433338,-441.023466,0.00013698,2]
[342248323,1731653433348,-441.023466,0.00013698,2]
[342248324,1731653433357,-502.12484005,0.00013698,2]
[342248325,1731653433367,-441.023466,0.00013698,2]
[342248326,1731653433376,-441.023466,0.00013698,2]
[342248327,1731653433386,-441.023466,0.00013698,2]
[342248328,1731653433395,-448.25223722,0.00013698,2]
[342248329,1731653433405,-228.80940411,0.00013698,2]
[342248330,1731653433415,-500.0,0.00013698,2]
[342248331,1731653433424,-500.0,0.00013698,2]
[342248332,1731653433434,-500.0,0.00013698,2]
[342248333,1731653433443,-500.0,0.00013698,2]
[342248334,1731653433453,-557.41,0.00013698,2]
[342248335,1731653433462,-500.0,0.00013698,2]
[342248336,1731653433472,-500.0,0.00013698,2]
[342248337,1731653433481,-500.0,0.00013698,2]
[342248338,1731653433491,-151.0,0.00013698,2]
[342248339,1731653433500,-151.0,0.00013698,2]
[342248340,1731653433511,-151.0,0.00013698,2]
[342248341,1731653433520,-151.0,0.00013698,2]
[342248342,1731653433530,-151.0,0.00013698,2]
[342248343,1731653433539,-151.0,0.00013698,2]
[342248344,1731653433549,-500.0,0.00013698,2]
[342248345,1731653433558,-500.0,0.00013698,2]
[342248346,1731653433567,-151.0,0.00013698,2]
[342248347,1731653433582,-151.0,0.00013698,2]
[342248348,1731653433592,-151.0,0.00013698,2]
[342248349,1731653433601,-151.0,0.00013698,2]
[342248350,1731653433611,-151.0,0.00013698,2]
[342248351,1731653433620,-151.0,0.00013698,2]
[342248352,1731653433630,-500.0,0.00013698,2]
[342248353,1731653433639,-289.135654,0.00013698,2]
[342248354,1731653433649,-151.0,0.00013698,2]
[342248355,1731653433659,-500.0,0.00013698,2]
[342248356,1731653433668,-500.0,0.00013698,2]
[342248357,1731653433678,-500.0,0.00013698,2]
[342248358,1731653433688,-1000.0,0.00013698,2]
[342248359,1731653433697,-577.30359681,0.00013698,2]
[342248360,1731653433711,-267.60168526,0.00013698,2]
[342248361,1731653433721,-500.0,0.00013698,2]
[342248362,1731653433731,-500.0,0.00013698,2]
[342248363,1731653433742,-500.0,0.00013698,2]
[342248364,1731653433751,-636.58,0.00013698,2]
[342248365,1731653433763,-500.0,0.00013698,2]
[342248366,1731653433772,-151.0,0.00013698,2]
[342248367,1731653433782,-500.0,0.00013698,2]
[342248368,1731653433791,-151.0,0.00013698,2]
[342248369,1731653433801,-211.966704,0.00013698,2]
[342248370,1731653433810,-151.0,0.00013698,2]
[342248371,1731653433819,-151.0,0.00013698,2]
[342248372,1731653433828,-151.0,0.00013698,2]
[342248373,1731653433838,-500.0,0.00013698,2]
[342248374,1731653433847,-151.0,0.00013698,2]
[342248375,1731653433856,-151.0,0.00013698,2]
[342248376,1731653433866,-151.0,0.00013698,2]
[342248377,1731653433875,-186.26656995,0.00013698,2]
[342248378,1731653433884,-586.53,0.00013698,2]
[342248379,1731653433894,-500.0,0.00013698,2]
[342248380,1731653433904,-500.0,0.00013698,2]
[342248381,1731653433913,-502.94123826,0.00013698,2]
[342248382,1731653433923,-151.0,0.00013698,2]
[342248383,1731653433932,-241.28109,0.00013698,2]
[342248384,1731653433942,-623.89,0.00013698,2]
[342248385,1731653433952,-665.84,0.00013698,2]
[342248386,1731653433962,-760.2,0.00013698,2]
[342248387,1731653433971,-211.64526837,0.00013698,2]
[342248388,1731653433981,-600.32,0.00013698,2]
[342248389,1731653434140,-500.0,0.00013698,2]
[342248390,1731653434151,-531.38,0.00013698,2]
[342248391,1731653434161,-500.0,0.00013698,2]
[342248392,1731653434171,-503.54515284,0.00013698,2]
[342248393,1731653434182,-511.06380559,0.00013698,2]
[342248394,1731653434192,-295.21912529,0.00013698,2]
[342248395,1731653434202,-846.69,0.00013698,2]
[342248396,1731653434212,-500.0,0.00013698,2]
[342248397,1731653434221,-151.0,0.00013698,2]
[342248398,1731653434230,-151.0,0.00013698,2]
[342248399,1731653434240,-151.0,0.00013698,2]
[342248400,1731653434250,-151.0,0.00013698,2]
[342248401,1731653434263,-248.848934,0.00013698,2]
[342248402,1731653434273,-500.0,0.00013698,2]
[342248403,1731653434284,-631.27,0.00013698,2]
[342248404,1731653434294,-151.0,0.00013698,2]
[342248405,1731653434304,-151.0,0.00013698,2]
[342248406,1731653434314,-151.0,0.00013698,2]
[342248407,1731653434323,-151.0,0.00013698,2]
[342248408,1731653434333,-151.0,0.00013698,2]
[342248409,1731653434344,-166.623773,0.00013698,2]
[342248410,1731653434354,-500.0,0.00013698,2]
[342248411,1731653434363,-519.4753044,0.00013698,2]
[342248412,1731653434373,-500.0,0.00013698,2]
[342248413,1731653434383,-500.0,0.00013698,2]
[342248414,1731653434393,-500.0,0.00013698,2]
[342248415,1731653434402,-500.0,0.00013698,2]
[342248416,1731653434412,-432.57980322,0.00013698,2]
[342248417,1731653434421,-500.0,0.00013698,2]
[342248418,1731653434431,-504.51791589,0.00013698,2]
[342248419,1731653434440,-500.0,0.00013698,2]
[342248420,1731653434450,-505.74926897,0.00013698,2]
[342248421,1731653434459,-509.34054982,0.00013698,2]
[342248422,1731653434469,-505.64549083,0.00013698,2]
[342248423,1731653434479,-619.28,0.00013698,2]
[342248424,1731653434488,-500.0,0.00013698,2]
[342248425,1731653434497,-508.20346277,0.00013698,2]
[342248426,1731653434509,-500.0,0.00013698,2]
[342248427,1731653434519,-500.0,0.00013698,2]
[342248428,1731653434529,-502.42541666,0.00013698,2]
[342248429,1731653434539,-500.0,0.00013698,2]
[342248430,1731653434548,-732.29,0.00013698,2]
[342248431,1731653434557,-500.0,0.00013698,2]
[342248432,1731653434567,-500.0,0.00013698,2]
[342248433,1731653434576,-500.0,0.00013698,2]
[342248434,1731653434586,-500.0,0.00013698,2]
[342248435,1731653434595,-500.0,0.00013698,2]
[342248436,1731653434605,-503.01438814,0.00013698,2]
[342248437,1731653434614,-595.34469163,0.00013698,2]
[342248438,1731653434624,-2666.43,0.00013698,2]
[342248439,1731653434633,-500.0,0.00013698,2]
[342248440,1731653434642,-500.55201121,0.00013698,2]
[342248441,1731653434652,-527.04160092,0.00013698,2]
[342248442,1731653434661,-500.0,0.00013698,2]
[342248443,1731653434670,-500.0,0.00013698,2]
[342248444,1731653434679,-503.47040932,0.00013698,2]
[342248445,1731653434687,-504.93256793,0.00013698,2]
[342248446,1731653434697,-589.15572828,0.00013698,2]
[342248447,1731653434706,-500.0,0.00013698,2]
[342248448,1731653434715,-857.24,0.00013698,2]
[342248449,1731653434724,-151.0,0.00013698,2]
[342248450,1731653434734,-501.38991925,0.00013698,2]
[342248451,1731653434743,-151.0,0.00013698,2]
[342248452,1731653434755,-500.0,0.00013698,2]
[342248453,1731653434764,-151.0,0.00013698,2]
[342248454,1731653434773,-151.0,0.00013698,2]
[342248455,1731653434783,-500.0,0.00013698,2]
[342248456,1731653434792,-400.52705205,0.00013698,2]
[342248457,1731653434801,-500.0,0.00013698,2]
[342248458,1731653434810,-1649.9,0.00013698,2]
[342248459,1731653434819,-500.0,0.00013698,2]
[342248460,1731653434828,-500.0,0.00013698,2]
[342248461,1731653434838,-500.0,0.00013698,2]
[342248462,1731653434847,-423.60365757,0.00013698,2]
[342248463,1731653434856,-601.2,0.00013698,2]
[342248464,1731653434865,-500.0,0.00013698,2]
[342248465,1731653434874,-1306.03,0.00013698,2]
[342248466,1731653434884,-500.0,0.00013698,2]
[342248467,1731653434893,-500.56141296,0.00013698,2]
[342248468,1731653434903,-500.0,0.00013698,2]
[342248469,1731653434912,-294.029405,0.00013698,2]
[342248470,1731653434922,-422.87658562,0.00013698,2]
[342248471,1731653434931,-1595.74,0.00013698,2]
[342248472,1731653434941,-500.0,0.00013698,2]
[342248473,1731653434952,-647.39,0.00013698,2]
[342248474,1731653434961,-2686.89,0.00013698,2]
[342248475,1731653434971,-500.0,0.00013698,2]
[342248476,1731653434980,-500.0,0.00013698,2]
[342248477,1731653434989,-500.0,0.00013698,2]
[342248478,1731653434999,-251.71654123,0.00013698,2]
[342248479,1731653435009,-575.05,0.00013698,2]
[342248480,1731653435019,-500.0,0.00013698,2]
[342248481,1731653435028,-500.0,0.00013698,2]
[342248482,1731653435037,-500.0,0.00013698,2]
[342248483,1731653435046,-1044.58,0.00013698,2]
[342248484,1731653435056,-1808.14,0.00013698,2]
[342248485,1731653435065,-500.0,0.00013698,2]
[342248486,1731653435075,-2058.33,0.00013698,2]
[342248487,1731653435084,-500.0,0.00013698,2]
[342248488,1731653435093,-501.5664721,0.00013698,2]
[342248489,1731653435105,-500.0,0.00013698,2]
[342248490,1731653435114,-500.0,0.00013698,2]
[342248491,1731653435123,-500.0,0.00013698,2]
[342248492,1731653435132,-722.5,0.00013698,2]
[342248493,1731653435141,-224.62247657,0.00013698,2]
[342248494,1731653435150,-507.34573387,0.00013698,2]
[342248495,1731653435159,-763.46,0.00013698,2]
[342248496,1731653435169,-500.0,0.00013698,2]
[342248497,1731653435178,-504.04034814,0.00013698,2]
[342248498,1731653435188,-500.0,0.00013698,2]
[342248499,1731653435198,-737.76,0.00013698,2]
[342248500,1731653435207,-500.0,0.00013698,2]
[342248501,1731653435216,-500.0,0.00013698,2]
[342248502,1731653435226,-504.35930502,0.00013698,2]
[342248503,1731653435235,-585.29,0.00013698,2]
[342248504,1731653435244,-506.08,0.00013698,2]
[342248505,1731653435254,-151.0,0.00013698,2]
[342248506,1731653435268,-4083.77,0.00013698,2]
[342248507,1731653435278,-500.0,0.00013698,2]
[342248508,1731653435287,-684.64,0.00013698,2]
[342248509,1731653435296,-698.01,0.00013698,2]
[342248510,1731653435305,-500.0,0.00013698,2]
[342248511,1731653435315,-561.77695,0.00013698,2]
[342248512,1731653435323,-500.0,0.00013698,2]
[342248513,1731653435332,-561.77695,0.00013698,2]
[342248514,1731653435341,-561.77695,0.00013698,2]
[342248515,1731653435351,-500.0,0.00013698,2]
[342248516,1731653435360,-500.0,0.00013698,2]
[342248517,1731653435369,-561.77695,0.00013698,2]
[342248518,1731653435378,-561.77695,0.00013698,2]
[342248519,1731653435386,-500.0,0.00013698,2]
[342248520,1731653435395,-561.77695,0.00013698,2]
[342248521,1731653435404,-500.0,0.00013698,2]
[342248522,1731653435413,-500.0,0.00013698,2]
[342248523,1731653435423,-23956.27,0.00013698,2]
[342248524,1731653435432,-151.0,0.00013698,2]
[342248525,1731653435441,-572.76,0.00013698,2]
[342248526,1731653435450,-151.471262,0.00013698,2]
[342248527,1731653435459,-667.33,0.00013698,2]
[342248528,1731653435468,-500.0,0.00013698,2]
[342248529,1731653435477,-560.38,0.00013698,2]
[342248530,1731653435487,-500.0,0.00013698,2]
[342248531,1731653435496,-500.0,0.00013698,2]
[342248532,1731653435507,-2052.49,0.00013698,2]
[342248533,1731653435516,-500.0,0.00013698,2]
[342248534,1731653435526,-1897.36,0.00013698,2]
[342248535,1731653435535,-500.0,0.00013698,2]
[342248536,1731653435544,-885.35,0.00013698,2]
[342248537,1731653435553,-500.0,0.00013698,2]
[342248538,1731653435562,-516.19,0.00013698,2]
[342248539,1731653435571,-151.0,0.00013698,2]
[342248540,1731653435579,-210.651066,0.00013698,2]
[342248541,1731653435588,-500.0,0.00013698,2]
[342248542,1731653435597,-500.0,0.00013698,2]
[342248543,1731653435606,-500.0,0.00013698,2]
[342248544,1731653435615,-718.68,0.00013698,2]
[342248545,1731653435624,-1101.03,0.00013698,2]
[342248546,1731653435633,-1569.69,0.00013698,2]
[342248547,1731653435643,-500.0,0.00013698,2]
[342248548,1731653435652,-151.0,0.00013698,2]
[342248549,1731653435661,-151.0,0.00013698,2]
[342248550,1731653435670,-300.251348,0.00013698,2]
[342248551,1731653435679,-500.0,0.00013698,2]
[342248552,1731653435688,-1103.17,0.00013698,2]
[342248553,1731653435697,-2662.25,0.00013698,2]
[342248554,1731653435706,-502.52492963,0.00013698,2]
[342248555,1731653435715,-500.0,0.00013698,2]
[342248556,1731653435724,-500.0,0.00013698,2]
[342248557,1731653435734,-1027.92,0.00013698,2]
[342248558,1731653435743,-500.0,0.00013698,2]
[342248559,1731653435752,-500.880832,0.00013698,2]
[342248560,1731653435768,-500.0,0.00013698,2]
[342248561,1731653435777,-1420.92,0.00013698,2]
[342248562,1731653435786,-500.0,0.00013698,2]
[342248563,1731653435795,-751.04,0.00013698,2]
[342248564,1731653435804,-584.87,0.00013698,2]
[342248565,1731653435813,-3851.32,0.00013698,2]
[342248566,1731653435822,-502.93,0.00013698,2]
[342248567,1731653435832,-624.42,0.00013698,2]
[342248568,1731653435841,-1045.099754,0.00013698,2]
[342248569,1731653435850,-1045.099754,0.00013698,2]
[342248570,1731653435859,-1045.099754,0.00013698,2]
[342248571,1731653435868,-1045.099754,0.00013698,2]
[342248572,1731653435878,-500.0,0.00013698,2]
[342248573,1731653435887,-1045.099754,0.00013698,2]
[342248574,1731653435896,-1045.099754,0.00013698,2]
[342248575,1731653435906,-1045.099754,0.00013698,2]
[342248576,1731653435915,-1045.099754,0.00013698,2]
[342248577,1731653435927,-591.72,0.00013698,2]
[342248578,1731653435936,-600.38,0.00013698,2]
[342248579,1731653435948,-500.0,0.00013698,2]
[342248580,1731653435957,-870.59,0.00013698,2]
[342248581,1731653435967,-500.0,0.00013698,2]
[342248582,1731653435976,-500.0,0.00013698,2]
[342248583,1731653435986,-500.0,0.00013698,2]
[342248584,1731653435995,-500.0,0.00013698,2]
[342248585,1731653436006,-151.0,0.00013698,2]
[342248586,1731653436015,-201.70512,0.00013698,2]
[342248587,1731653436025,-4127.08,0.00013698,2]
[342248588,1731653436034,-625.25,0.00013698,2]
[342248589,1731653436044,-1061.13,0.00013698,2]
[342248590,1731653436053,-500.0,0.00013698,2]
[342248591,1731653436062,-4117.45,0.00013698,2]
[342248592,1731653436071,-504.76582646,0.00013698,2]
[342248593,1731653436081,-24965.73,0.00013698,2]
[342248594,1731653436090,-151.0,0.00013698,2]
[342248595,1731653436101,-854.63,0.00013698,2]
[342248596,1731653436111,-7528.99,0.00013698,2]
[342248597,1731653436120,-976.29,0.00013698,2]
[342248598,1731653436129,-7401.22,0.00013698,2]
[342248599,1731653436139,-913.45,0.00013698,2]
[342248600,1731653436149,-151.459016,0.00013698,2]
[342248601,1731653436159,-151.459016,0.00013698,2]
[342248602,1731653436168,-1949.73,0.00013698,2]
[342248603,1731653436180,-151.459016,0.00013698,2]
[342248604,1731653436190,-151.459016,0.00013698,2]
[342248605,1731653436200,-151.0,0.00013698,2]
[342248606,1731653436210,-151.0,0.00013698,2]
[342248607,1731653436220,-161.640688,0.00013698,2]
[342248608,1731653436229,-553.19,0.00013698,2]
[342248609,1731653436238,-151.459016,0.00013698,2]
[342248610,1731653436248,-151.459016,0.00013698,2]
[342248611,1731653436259,-151.459016,0.00013698,2]
[342248612,1731653436268,-151.459016,0.00013698,2]
[342248613,1731653436278,-500.0,0.00013698,2]
[342248614,1731653436287,-500.0,0.00013698,2]
[342248615,1731653436297,-704.8,0.00013698,2]
[342248616,1731653436307,-383.56688678,0.00013698,2]
[342248617,1731653436317,-500.0,0.00013698,2]
[342248618,1731653436327,-1817.2,0.00013698,2]
[342248619,1731653436337,-500.0,0.00013698,2]
[342248620,1731653436346,-501.84946638,0.00013698,2]
[342248621,1731653436356,-506.01707021,0.00013698,2]
[342248622,1731653436365,-500.0,0.00013698,2]
[342248623,1731653436374,-500.0,0.00013698,2]
[342248624,1731653436383,-534.26354322,0.00013698,2]
[342248625,1731653436393,-935.85,0.00013698,2]
[342248626,1731653436402,-609.31,0.00013698,2]
[342248627,1731653436411,-507.00743787,0.00013698,2]
[342248628,1731653436420,-500.0,0.00013698,2]
[342248629,1731653436430,-500.0,0.00013698,2]
[342248630,1731653436439,-16849.151869,0.00013699,2]
[342248631,1731653436449,-151.0,0.00013699,2]
[342248632,1731653436458,-151.0,0.00013699,2]
[342248633,1731653436467,-151.0,0.00013699,2]
[342248634,1731653436477,-3040.45821,0.00013699,2]
[342248635,1731653436487,-235.837189,0.00013699,2]
[342248636,1731653436497,-500.0,0.00013699,2]
[342248637,1731653436508,-506.07842194,0.00013699,2]
[342248638,1731653436517,-151.0,0.00013699,2]
[342248639,1731653436527,-561.77695,0.00013699,2]
[342248640,1731653436536,-561.77695,0.00013699,2]
[342248641,1731653436545,-1045.099754,0.00013699,2]
[342248642,1731653436554,-1045.099754,0.00013699,2]
[342248643,1731653436564,-411.14482607,0.00013735,2]
[342248644,1731653436574,-411.14482607,0.00013804,2]
[342248645,1731653436583,-151.0,0.00013872,2]
[342248646,1731653436592,-239.86887,0.00013872,2]
[342248647,1731653436601,-151.0,0.00013872,2]
[342248648,1731653436611,-151.0,0.00013872,2]
[342248649,1731653436620,-411.14482607,0.00013872,2]
[342248650,1731653436629,-1729.20956832,0.00013872,2]
[342248651,1731653436639,-420.0,0.00013928,2]
[342248652,1731653436647,-420.0,0.00013967,2]
[342248653,1731653436656,-150.01,0.00013971,2]
[342248654,1731653436666,-3535.31159697,0.00013971,2]
[342248655,1731653436675,-151.0,0.00013971,2]
[342248656,1731653436684,-156.10613,0.00013971,2]
[342248657,1731653436693,-151.0,0.00013971,2]
[342248658,1731653436703,-151.459016,0.00013971,2]
[342248659,1731653436712,-151.459016,0.00013971,2]
[342248660,1731653436721,-151.594296,0.00013972,2]
[342248661,1731653436730,-151.594296,0.00013972,2]
[342248662,1731653436739,-151.594296,0.00013972,2]
[342248663,1731653436749,-151.594296,0.00013972,2]
[342248664,1731653436760,-151.594296,0.00013972,2]
[342248665,1731653436770,-151.594296,0.00013972,2]
[342248666,1731653436779,-151.0,0.00013972,2]
[342248667,1731653436788,-151.0,0.00013972,2]
[342248668,1731653436797,-152.572751,0.00013972,2]
[342248669,1731653436807,-151.0,0.00013972,2]
[342248670,1731653436816,-151.0,0.00013972,2]
[342248671,1731653436825,-151.0,0.00013972,2]
[342248672,1731653436834,-151.0,0.00013972,2]
[342248673,1731653436844,-151.0,0.00013972,2]
[342248674,1731653436853,-151.0,0.00013972,2]
[342248675,1731653436864,-151.0,0.00013972,2]
[342248676,1731653436873,-151.0,0.00013972,2]
[342248677,1731653436883,-151.0,0.00013972,2]
[342248678,1731653436892,-151.0,0.00013972,2]
[342248679,1731653436902,-151.0,0.00013972,2]
[342248680,1731653436912,-151.0,0.00013972,2]
[342248681,1731653436922,-151.0,0.00013972,2]
[342248682,1731653436933,-151.0,0.00013972,2]
[342248683,1731653436942,-151.0,0.00013972,2]
[342248684,1731653436952,-151.0,0.00013972,2]
[342248685,1731653436962,-151.0,0.00013972,2]
[342248686,1731653436972,-151.0,0.00013972,2]
[342248687,1731653436981,-151.0,0.00013972,2]
[342248688,1731653436990,-151.0,0.00013972,2]
[342248689,1731653437000,-151.0,0.00013972,2]
[342248690,1731653437010,-151.0,0.00013972,2]
[342248691,1731653437019,-151.0,0.00013972,2]
[342248692,1731653437029,-151.0,0.00013972,2]
[342248693,1731653437038,-151.0,0.00013972,2]
[342248694,1731653437047,-151.0,0.00013972,2]
[342248695,1731653437056,-181.479742,0.00013972,2]
[342248696,1731653437066,-151.0,0.00013972,2]
[342248697,1731653437075,-151.0,0.00013972,2]
[342248698,1731653437084,-151.0,0.00013972,2]
[342248699,1731653437094,-151.0,0.00013972,2]
[342248700,1731653437106,-153.990786,0.00013972,2]
[342248701,1731653437115,-160.898404,0.00013972,2]
[342248702,1731653437125,-160.898404,0.00013972,2]
[342248703,1731653437134,-160.898404,0.00013972,2]
[342248704,1731653437144,-160.898404,0.00013972,2]
[342248705,1731653437152,-160.898404,0.00013972,2]
[342248706,1731653437161,-160.898404,0.00013972,2]
[342248707,1731653437171,-160.898404,0.00013972,2]
[342248708,1731653437182,-160.898404,0.00013972,2]
[342248709,1731653437192,-160.898404,0.00013972,2]
[342248710,1731653437202,-160.898404,0.00013972,2]
[342248711,1731653437211,-197.91308065,0.00013972,2]
[342248712,1731653437221,-151.0,0.00013972,2]
[342248713,1731653437231,-151.0,0.00013972,2]
[342248714,1731653437240,-151.0,0.00013972,2]
[342248716,1731653437250,-151.0,0.00013972,2]
[342248717,1731653437262,-170.717121,0.00013972,2]
[342248718,1731653437272,-1320.367654,0.00013972,2]
[342248719,1731653437282,-1320.367654,0.00013972,2]
[342248720,1731653437292,-1320.367654,0.00013972,2]
[342248721,1731653437301,-1320.367654,0.00013972,2]
[342248722,1731653437310,-1320.367654,0.00013972,2]
[342248723,1731653437320,-1320.367654,0.00013972,2]
[342248724,1731653437329,-1320.367654,0.00013972,2]
[342248725,1731653437339,-1320.367654,0.00013972,2]
[342248726,1731653437348,-1320.367654,0.00013972,2]
[342248727,1731653437357,-1320.367654,0.00013972,2]
[342248728,1731653437367,-151.0,0.00013972,2]
[342248729,1731653437377,-151.0,0.00013972,2]
[342248730,1731653437387,-151.0,0.00013972,2]
[342248731,1731653437396,-151.0,0.00013972,2]
[342248732,1731653437406,-151.0,0.00013972,2]
[342248733,1731653437415,-151.0,0.00013972,2]
[342248734,1731653437425,-151.0,0.00013972,2]
[342248736,1731653437434,-151.0,0.00013972,2]
[342248740,1731653437574,-275.854888,0.00013972,2]
[342248741,1731653437585,-500.0,0.00013972,2]
[342248742,1731653437595,-743.88,0.00013972,2]
[342248743,1731653437605,-629.43,0.00013972,2]
[342248744,1731653437615,-480.78252724,0.00013972,2]
[342248745,1731653437625,-500.0,0.00013972,2]
[342248746,1731653437635,-500.0,0.00013972,2]
[342248747,1731653437645,-500.0,0.00013972,2]
[342248748,1731653437655,-441.023466,0.00013972,2]
[342248749,1731653437665,-441.023466,0.00013972,2]
[342248750,1731653437675,-441.023466,0.00013972,2]
[342248751,1731653437684,-441.023466,0.00013972,2]
[342248752,1731653437694,-441.023466,0.00013972,2]
[342248754,1731653437704,-441.023466,0.00013972,2]
[342248756,1731653437714,-441.023466,0.00013972,2]
[342248757,1731653437723,-441.023466,0.00013972,2]
[342248759,1731653437732,-441.023466,0.00013972,2]
[342248760,1731653437742,-441.023466,0.00013972,2]
[342248761,1731653437752,-441.023466,0.00013972,2]
[342248762,1731653437764,-441.023466,0.00013972,2]
[342248763,1731653437773,-500.0,0.00013972,2]
[342248764,1731653437782,-500.0,0.00013972,2]
[342248765,1731653437792,-308.8693367,0.00013972,2]
[342248766,1731653437802,-504.15268688,0.00013972,2]
[342248767,1731653437812,-557.41,0.00013972,2]
[342248768,1731653437821,-500.0,0.00013972,2]
[342248769,1731653437831,-289.11667836,0.00013972,2]
[342248770,1731653437841,-500.0,0.00013972,2]
[342248771,1731653437850,-151.0,0.00013972,2]
[342248772,1731653437859,-151.0,0.00013972,2]
[342248773,1731653437869,-151.0,0.00013972,2]
[342248774,1731653437879,-151.0,0.00013972,2]
[342248775,1731653437889,-151.0,0.00013972,2]
[342248776,1731653437899,-500.0,0.00013972,2]
[342248777,1731653437909,-500.0,0.00013972,2]
[342248778,1731653437919,-151.0,0.00013972,2]
[342248779,1731653437930,-151.0,0.00013972,2]
[342248780,1731653437940,-151.0,0.00013972,2]
[342248781,1731653437951,-151.0,0.00013972,2]
[342248782,1731653437960,-151.0,0.00013972,2]
[342248783,1731653437970,-500.0,0.00013972,2]
[342248784,1731653437980,-273.81793,0.00013972,2]
[342248785,1731653437989,-500.0,0.00013972,2]
[342248786,1731653437999,-500.0,0.00013972,2]
[342248787,1731653438011,-500.0,0.00013972,2]
[342248788,1731653438021,-1000.0,0.00013972,2]
[342248789,1731653438030,-500.0,0.00013972,2]
[342248790,1731653438041,-213.8098916,0.00013972,2]
[342248791,1731653438051,-500.0,0.00013972,2]
[342248792,1731653438061,-636.58,0.00013972,2]
[342248793,1731653438070,-500.0,0.00013972,2]
[342248794,1731653438080,-500.0,0.00013972,2]
[342248795,1731653438090,-151.0,0.00013972,2]
[342248796,1731653438099,-151.0,0.00013972,2]
[342248797,1731653438112,-151.0,0.00013972,2]
[342248798,1731653438122,-151.0,0.00013972,2]
[342248799,1731653438131,-151.0,0.00013972,2]
[342248800,1731653438143,-151.0,0.00013972,2]
[342248801,1731653438152,-500.0,0.00013972,2]
[342248802,1731653438162,-151.0,0.00013972,2]
[342248803,1731653438172,-151.0,0.00013972,2]
[342248804,1731653438183,-586.53,0.00013972,2]
[342248805,1731653438193,-151.0,0.00013972,2]
[342248806,1731653438202,-508.6755751,0.00013972,2]
[342248807,1731653438212,-151.0,0.00013972,2]
[342248808,1731653438222,-151.0,0.00013972,2]
[342248809,1731653438231,-275.744181,0.00013972,2]